lending/lending_fUSD_20260204
["ID","MTS","AMOUNT","RATE_DAILY","PERIOD"]
[404511711,1770234401963,-3302.06,0.000261,14]
[404511712,1770234401994,-359.60000876,0.00026667,30]
[404511713,1770234402020,-533.0,0.00026776,10]
[404511714,1770234402048,-2446.571246,0.00027358,30]
[404511715,1770234402073,-200.93065936,0.0002739,120]
[404511716,1770234402100,-2000.0,0.00027397,22]
[404511717,1770234402126,-1102.41,0.00027397,30]
[404511718,1770234402150,-750.0,0.00027397,20]
[404511719,1770234402176,-533.0,0.00027403,10]
[404511720,1770234402204,-1158.285879,0.00027429,30]
[404511721,1770234402231,-7904.61055165,0.00028,60]
[404511722,1770234402255,-160.0,0.00028,30]
[404511723,1770234402279,-160.0,0.00028,30]
[404511724,1770234402304,-533.0,0.00028029,11]
[404511725,1770234402330,-533.0,0.00028655,11]
[404511726,1770234402356,-359.60000876,0.00028889,30]
[404511727,1770234402381,-829.5454564,0.00029,120]
[404511728,1770234402407,-533.0,0.00029281,12]
[404511729,1770234402432,-533.0,0.00029907,13]
[404511730,1770234402457,-329.0733534,0.0003,120]
[404511731,1770234402482,-151.30203795,0.0003,120]
[404511732,1770234402507,-605.0,0.0003,14]
[404511733,1770234402749,-1919.39661681,0.00030136,32]
[404511734,1770234402777,-193.456158,0.00030137,31]
[404511735,1770234402803,-193.456158,0.00030137,31]
[404511736,1770234402829,-193.456158,0.00030137,31]
[404511737,1770234402856,-193.456158,0.00030137,31]
[404511738,1770234402883,-193.456158,0.00030137,31]
[404511739,1770234402908,-193.456158,0.00030137,31]
[404511740,1770234402936,-193.456158,0.00030137,31]
[404511741,1770234402962,-193.456158,0.00030137,31]
[404511742,1770234402992,-221.1,0.000302,30]
[404511743,1770234403019,-605.0,0.00030411,14]
[404511744,1770234403047,-533.0,0.00030533,13]
[404511745,1770234403075,-359.60000876,0.00031111,30]
[404511746,1770234403103,-533.0,0.0003116,14]
[404511747,1770234403130,-263.01717245,0.000314,30]
[404511748,1770234403156,-605.0,0.00031644,14]
[404511749,1770234403184,-152.0,0.00031739,10]
[404511750,1770234403212,-533.0,0.00031786,14]
[404511751,1770234403239,-1176.90440165,0.00032,120]
[404511752,1770234403267,-174.38952037,0.00032,120]
[404511753,1770234403295,-1102.41,0.00032232,30]
[404511754,1770234403324,-27667.36235948,0.000323,15]
[404511755,1770234403350,-533.0,0.00032412,15]
[404511756,1770234403376,-152.0,0.00032448,11]
[404511757,1770234403405,-151.0,0.00032877,30]
[404511758,1770234403430,-151.0,0.00032877,30]
[404511759,1770234403459,-151.0,0.00032877,30]
[404511760,1770234403485,-151.0,0.00032877,30]
[404511761,1770234403511,-151.0,0.00032877,30]
[404511762,1770234403539,-151.0,0.00032877,30]
[404511763,1770234403566,-1067.9,0.000329,14]
[404511764,1770234403592,-5355.38,0.000329,14]
[404511765,1770234403620,-2751.71,0.000329,30]
[404511766,1770234403646,-165.0,0.00033,14]
[404511767,1770234403673,-533.0,0.00033038,16]
[404511768,1770234403701,-152.0,0.00033157,12]
[404511769,1770234403727,-606.0,0.00033226,30]
[404511770,1770234403753,-181.0,0.0003335,120]
[404511771,1770234403779,-162.74848546,0.0003335,120]
[404511772,1770234403805,-533.0,0.00033664,16]
[404511773,1770234403831,-9660.8,0.000338,14]
[404511774,1770234403857,-152.0,0.00033866,13]
[404511775,1770234403882,-409.280009,0.000341,30]
[404511776,1770234403909,-1957.256997,0.00034198,60]
[404511777,1770234403937,-926.628703,0.00034286,60]
[404511778,1770234403968,-533.0,0.0003429,17]
[404511779,1770234403995,-1067.9,0.000345,14]
[404511780,1770234404027,-5355.38,0.000345,14]
[404511781,1770234404057,-165.0,0.00034521,30]
[404511782,1770234404085,-152.0,0.00034575,14]
[404511783,1770234404115,-154.9684371,0.00034849,30]
[404511784,1770234404143,-487.48855336,0.0003488,120]
[404511785,1770234404174,-533.0,0.00034916,17]
[404511786,1770234404204,-157.97067617,0.00035,30]
[404511787,1770234404232,-326.81174286,0.00035,30]
[404511788,1770234404261,-250.0,0.00035,30]
[404511789,1770234404289,-154.9684371,0.00035096,30]
[404511790,1770234404316,-152.0,0.00035284,15]
[404511791,1770234404344,-154.9684371,0.0003537,30]
[404511792,1770234404372,-605.0,0.00035441,30]
[404511793,1770234404400,-4308.0,0.00035521,20]
[404511794,1770234404428,-533.0,0.00035543,18]
[404511795,1770234404456,-151.0,0.00035607,14]
[404511796,1770234404490,-154.9684371,0.00035616,30]
[404511797,1770234404518,-9660.8,0.000357,14]
[404511798,1770234404547,-200.389321,0.000357,12]
[404511799,1770234404576,-154.9684371,0.00035863,30]
[404511800,1770234404606,-4308.0,0.00035888,20]
[404511801,1770234404633,-152.0,0.00035993,16]
[404511802,1770234404662,-5355.38,0.00036,14]
[404511803,1770234404693,-1067.9,0.00036,14]
[404511804,1770234404722,-716.41190047,0.00036,10]
[404511805,1770234404752,-477.29,0.0003611,10]
[404511806,1770234404781,-154.9684371,0.00036137,30]
[404511807,1770234404810,-533.0,0.00036169,18]
[404511808,1770234404838,-4308.0,0.00036254,20]
[404511809,1770234404871,-154.9684371,0.00036384,30]
[404511810,1770234404901,-236.21,0.00036602,10]
[404511811,1770234404941,-4308.0,0.0003662,20]
[404511812,1770234404970,-152.0,0.00036702,17]
[404511813,1770234405002,-180.17,0.00036712,10]
[404511814,1770234405030,-533.0,0.00036795,19]
[404511815,1770234405061,-11834.93638092,0.00036888,60]
[404511816,1770234405090,-4308.0,0.00036986,20]
[404511817,1770234405119,-1102.41,0.00037067,120]
[404511818,1770234405364,-5355.38,0.000372,14]
[404511819,1770234405392,-1067.9,0.000372,14]
[404511820,1770234405418,-2500.0,0.000372,31]
[404511821,1770234405444,-4308.0,0.00037352,20]
[404511822,1770234405471,-152.0,0.00037411,18]
[404511823,1770234405497,-533.0,0.00037421,20]
[404511824,1770234405527,-2141.064,0.00037495,48]
[404511825,1770234405554,-605.0,0.00037656,30]
[404511826,1770234405579,-1500.0,0.000377,31]
[404511827,1770234405606,-200.0,0.000377,15]
[404511828,1770234405631,-4308.0,0.00037719,20]
[404511829,1770234405657,-293.88869184,0.000378,30]
[404511830,1770234405684,-173.0,0.00037837,120]
[404511831,1770234405710,-605.0,0.00037973,30]
[404511832,1770234405736,-512391.07822418,0.00038,120]
[404511833,1770234405761,-188.377143,0.00038,31]
[404511834,1770234405787,-151.0,0.00038,31]
[404511835,1770234405814,-151.0,0.00038,31]
[404511836,1770234405841,-151.0,0.00038,31]
[404511837,1770234405868,-378.71532796,0.00038,30]
[404511838,1770234405895,-163.0,0.00038,30]
[404511839,1770234405922,-151.0,0.00038,31]
[404511840,1770234405949,-151.0,0.00038,31]
[404511841,1770234405979,-511.358801,0.00038,31]
[404511842,1770234406021,-511.358801,0.00038,31]
[404511843,1770234406051,-511.358801,0.00038,31]
[404511844,1770234406080,-511.358801,0.00038,31]
[404511845,1770234406109,-151.0,0.00038,31]
[404511846,1770234406137,-151.0,0.00038,31]
[404511847,1770234406165,-151.0,0.00038,31]
[404511848,1770234406192,-151.0,0.00038,31]
[404511849,1770234406218,-193.456158,0.00038,31]
[404511850,1770234406246,-193.456158,0.00038,31]
[404511851,1770234406273,-193.456158,0.00038,31]
[404511852,1770234406300,-193.456158,0.00038,31]
[404511853,1770234406327,-151.107542,0.00038,31]
[404511854,1770234406353,-533.0,0.00038047,20]
[404511855,1770234406380,-685.24828064,0.000381,33]
[404511856,1770234406406,-9006.5371147,0.000381,33]
[404511857,1770234406439,-152.0,0.0003812,19]
[404511858,1770234406468,-1500.0,0.000382,31]
[404511859,1770234406496,-269.85594228,0.00038356,60]
[404511860,1770234406525,-9783.42,0.000384,30]
[404511861,1770234406554,-5355.38,0.000384,14]
[404511862,1770234406581,-1067.9,0.000384,14]
[404511863,1770234406610,-150.0,0.0003861,30]
[404511864,1770234406639,-163.0,0.0003863,90]
[404511865,1770234406667,-533.0,0.00038673,21]
[404511866,1770234406694,-1500.0,0.000387,31]
[404511867,1770234406721,-152.0,0.00038829,20]
[404511868,1770234406749,-1361.1944,0.00038888,30]
[404511869,1770234406776,-3067.91439394,0.0003889,30]
[404511870,1770234406803,-501.36167404,0.000389,31]
[404511871,1770234406829,-175.76318289,0.000389,30]
[404511872,1770234406860,-928.61813561,0.000389,120]
[404511873,1770234406888,-156.76368431,0.0003899,10]
[404511874,1770234406916,-51960.44562547,0.00039,90]
[404511875,1770234406945,-190.30298672,0.00039,120]
[404511876,1770234406977,-938.956649,0.00039041,120]
[404511877,1770234407006,-938.956649,0.00039041,120]
[404511878,1770234407034,-938.956649,0.00039041,120]
[404511879,1770234407064,-938.956649,0.00039041,120]
[404511880,1770234407096,-938.956649,0.00039041,120]
[404511881,1770234407124,-938.956649,0.00039041,120]
[404511882,1770234407152,-938.956649,0.00039041,120]
[404511883,1770234407180,-938.956649,0.00039041,120]
[404511884,1770234407208,-19650.15790584,0.000391,120]
[404511885,1770234407235,-1500.0,0.000392,31]
[404511886,1770234407262,-533.0,0.000393,21]
[404511887,1770234407290,-938.956649,0.0003931,120]
[404511888,1770234407316,-938.956649,0.0003931,120]
[404511889,1770234407344,-151.0,0.0003931,120]
[404511890,1770234407372,-938.956649,0.0003931,120]
[404511891,1770234407400,-151.0,0.0003931,120]
[404511892,1770234407428,-938.956649,0.0003931,120]
[404511893,1770234407456,-315202.71900644,0.000394,10]
[404511894,1770234407483,-151.0,0.000394,120]
[404511895,1770234407510,-151.0,0.000394,120]
[404511896,1770234407538,-151.0,0.000394,30]
[404511897,1770234407564,-151.0,0.000394,30]
[404511898,1770234407591,-151.0,0.000394,30]
[404511899,1770234407617,-151.0,0.000394,120]
[404511900,1770234407643,-151.0,0.000394,120]
[404511901,1770234407671,-175.647092,0.000394,120]
[404511902,1770234407697,-4331.664783,0.000394,28]
[404511903,1770234407725,-4331.664783,0.000394,28]
[404511904,1770234407753,-4331.664783,0.000394,28]
[404511905,1770234407993,-4331.664783,0.000394,28]
[404511906,1770234408030,-152.0,0.00039538,21]
[404511907,1770234408058,-163.0,0.00039553,11]
[404511908,1770234408085,-1034.19817471,0.000396,30]
[404511909,1770234408111,-1500.0,0.00039654,120]
[404511910,1770234408137,-1500.0,0.00039654,120]
[404511911,1770234408163,-1500.0,0.00039654,120]
[404511912,1770234408189,-1500.0,0.00039654,120]
[404511913,1770234408214,-1500.0,0.00039654,120]
[404511914,1770234408240,-1500.0,0.00039654,120]
[404511915,1770234408266,-1500.0,0.00039654,120]
[404511916,1770234408292,-1500.0,0.00039654,120]
[404511917,1770234408317,-1500.0,0.00039654,120]
[404511918,1770234408343,-1500.0,0.00039654,120]
[404511919,1770234408367,-1500.0,0.00039654,120]
[404511920,1770234408393,-150.0,0.000397,20]
[404511921,1770234408419,-9783.42,0.000397,30]
[404511922,1770234408446,-208.0,0.000397,22]
[404511923,1770234408472,-5355.38,0.000397,14]
[404511924,1770234408499,-1067.9,0.000397,14]
[404511925,1770234408525,-187.88,0.000397,40]
[404511926,1770234408552,-150.0,0.000397,60]
[404511927,1770234408577,-1500.0,0.000397,31]
[404511928,1770234408604,-200.0,0.000397,18]
[404511929,1770234408631,-2000.0,0.00039711,120]
[404511930,1770234408658,-530.787,0.00039711,120]
[404511931,1770234408685,-2000.0,0.00039711,117]
[404511932,1770234408713,-200.0,0.0003972,15]
[404511933,1770234408740,-1503.0,0.00039726,120]
[404511934,1770234408767,-151.0,0.00039726,120]
[404511935,1770234408793,-151.0,0.00039726,120]
[404511936,1770234408819,-151.0,0.00039726,120]
[404511937,1770234408847,-151.0,0.00039726,120]
[404511938,1770234408873,-1000.0,0.00039726,30]
[404511939,1770234408900,-1000.0,0.00039726,30]
[404511940,1770234408927,-1000.0,0.00039726,30]
[404511941,1770234408960,-1000.0,0.00039726,30]
[404511942,1770234408991,-1000.0,0.00039726,30]
[404511943,1770234409020,-1000.0,0.00039726,30]
[404511944,1770234409049,-1000.0,0.00039726,30]
[404511945,1770234409076,-1000.0,0.00039726,30]
[404511946,1770234409104,-1000.0,0.00039726,30]
[404511947,1770234409129,-1000.0,0.00039726,30]
[404511948,1770234409156,-1000.0,0.00039726,30]
[404511949,1770234409184,-1000.0,0.00039726,30]
[404511950,1770234409212,-1000.0,0.00039726,30]
[404511951,1770234409239,-1000.0,0.00039726,30]
[404511952,1770234409267,-1000.0,0.00039726,30]
[404511953,1770234409293,-1000.0,0.00039726,30]
[404511954,1770234409320,-1000.0,0.00039726,30]
[404511955,1770234409348,-1000.0,0.00039726,30]
[404511956,1770234409374,-1000.0,0.00039726,30]
[404511957,1770234409400,-1000.0,0.00039726,30]
[404511958,1770234409427,-1000.0,0.00039726,30]
[404511959,1770234409454,-429.11,0.00039726,30]
[404511960,1770234409480,-500.0,0.00039726,15]
[404511961,1770234409506,-500.0,0.00039726,15]
[404511962,1770234409532,-500.0,0.00039726,15]
[404511963,1770234409559,-500.0,0.00039726,15]
[404511964,1770234409584,-500.0,0.00039726,15]
[404511965,1770234409610,-500.0,0.00039726,15]
[404511966,1770234409637,-500.0,0.00039726,15]
[404511967,1770234409662,-500.0,0.00039726,15]
[404511968,1770234409689,-500.0,0.00039726,15]
[404511969,1770234409714,-191.33158393,0.00039726,15]
[404511970,1770234409740,-500.0,0.00039726,15]
[404511971,1770234409766,-500.0,0.00039726,15]
[404511972,1770234409791,-500.0,0.00039726,15]
[404511973,1770234409815,-221.98425535,0.00039726,15]
[404511974,1770234409842,-500.0,0.00039726,15]
[404511975,1770234409868,-500.0,0.00039726,15]
[404511976,1770234409893,-500.0,0.00039726,15]
[404511977,1770234409918,-500.0,0.00039726,15]
[404511978,1770234409944,-500.0,0.00039726,15]
[404511979,1770234409971,-500.0,0.00039726,15]
[404511980,1770234410000,-500.0,0.00039726,15]
[404511981,1770234410029,-500.0,0.00039726,15]
[404511982,1770234410058,-500.0,0.00039726,15]
[404511983,1770234410085,-500.0,0.00039726,15]
[404511984,1770234410111,-500.0,0.00039726,15]
[404511985,1770234410136,-500.0,0.00039726,15]
[404511986,1770234410163,-500.0,0.00039726,15]
[404511987,1770234410189,-500.0,0.00039726,15]
[404511988,1770234410215,-500.0,0.00039726,15]
[404511989,1770234410241,-500.0,0.00039726,15]
[404511990,1770234410266,-500.0,0.00039726,15]
[404511991,1770234410452,-500.0,0.00039726,15]
[404511992,1770234410480,-500.0,0.00039726,15]
[404511993,1770234410506,-500.0,0.00039726,15]
[404511994,1770234410534,-500.0,0.00039726,15]
[404511995,1770234410562,-500.0,0.00039726,15]
[404511996,1770234410588,-500.0,0.00039726,15]
[404511997,1770234410615,-500.0,0.00039726,15]
[404511998,1770234410641,-500.0,0.00039726,15]
[404511999,1770234410668,-500.0,0.00039726,15]
[404512000,1770234410696,-500.0,0.00039726,15]
[404512001,1770234410722,-500.0,0.00039726,15]
[404512002,1770234410748,-500.0,0.00039726,15]
[404512003,1770234410775,-500.0,0.00039726,15]
[404512004,1770234410803,-500.0,0.00039726,15]
[404512005,1770234410828,-500.0,0.00039726,15]
[404512006,1770234410854,-500.0,0.00039726,15]
[404512007,1770234410881,-500.0,0.00039726,15]
[404512008,1770234410909,-500.0,0.00039726,15]
[404512009,1770234410937,-500.0,0.00039726,15]
[404512010,1770234410971,-442.88603463,0.00039726,15]
[404512011,1770234411001,-500.0,0.00039726,15]
[404512012,1770234411029,-500.0,0.00039726,15]
[404512013,1770234411059,-500.0,0.00039726,15]
[404512014,1770234411087,-500.0,0.00039726,15]
[404512015,1770234411115,-500.0,0.00039726,15]
[404512016,1770234411143,-500.0,0.00039726,15]
[404512017,1770234411170,-500.0,0.00039726,15]
[404512018,1770234411198,-500.0,0.00039726,15]
[404512019,1770234411226,-500.0,0.00039726,15]
[404512020,1770234411253,-500.0,0.00039726,15]
[404512021,1770234411280,-500.0,0.00039726,15]
[404512022,1770234411306,-500.0,0.00039726,15]
[404512023,1770234411333,-500.0,0.00039726,15]
[404512024,1770234411360,-4257.98393486,0.00039726,15]
[404512025,1770234411387,-4257.98393486,0.00039726,15]
[404512026,1770234411415,-4257.98393486,0.00039726,15]
[404512027,1770234411444,-4257.98393486,0.00039726,15]
[404512028,1770234411470,-4257.98393486,0.00039726,15]
[404512029,1770234411498,-4257.98393486,0.00039726,15]
[404512030,1770234411525,-4257.98393486,0.00039726,15]
[404512031,1770234411551,-4257.98393486,0.00039726,15]
[404512032,1770234411577,-4257.98393486,0.00039726,15]
[404512033,1770234411604,-4257.98393486,0.00039726,15]
[404512034,1770234411630,-4257.98393486,0.00039726,15]
[404512035,1770234411657,-4376.26126639,0.00039726,15]
[404512036,1770234411684,-4257.98393486,0.00039726,15]
[404512037,1770234411710,-4376.26126639,0.00039726,15]
[404512038,1770234411737,-4257.98393486,0.00039726,15]
[404512039,1770234411763,-4257.98393486,0.00039726,15]
[404512040,1770234411790,-4257.98393486,0.00039726,15]
[404512041,1770234411817,-4257.98393486,0.00039726,15]
[404512042,1770234411843,-4257.98393486,0.00039726,15]
[404512043,1770234411870,-4257.98393486,0.00039726,15]
[404512044,1770234411896,-4376.26126639,0.00039726,15]
[404512045,1770234411924,-4257.98393486,0.00039726,15]
[404512046,1770234411951,-4257.98393486,0.00039726,15]
[404512047,1770234411982,-4257.98393486,0.00039726,15]
[404512048,1770234412008,-4257.98393486,0.00039726,15]
[404512049,1770234412036,-4257.98393486,0.00039726,15]
[404512050,1770234412064,-4257.98393486,0.00039726,15]
[404512051,1770234412102,-4376.26126639,0.00039726,15]
[404512052,1770234412140,-4257.98393486,0.00039726,15]
[404512053,1770234412178,-4257.98393486,0.00039726,15]
[404512054,1770234412216,-4257.98393486,0.00039726,15]
[404512055,1770234412252,-4257.98393486,0.00039726,15]
[404512056,1770234412289,-4257.98393486,0.00039726,15]
[404512057,1770234412326,-4257.98393486,0.00039726,15]
[404512058,1770234412364,-4257.98393486,0.00039726,15]
[404512059,1770234412403,-4257.98393487,0.00039726,15]
[404512060,1770234412448,-4257.98393487,0.00039726,15]
[404512061,1770234412486,-4257.98393487,0.00039726,15]
[404512062,1770234412522,-4257.98393487,0.00039726,15]
[404512063,1770234412556,-4257.98393487,0.00039726,15]
[404512064,1770234412592,-4257.98393485,0.00039726,15]
[404512065,1770234412624,-232.135823,0.00039726,120]
[404512066,1770234412658,-334.271318,0.00039726,120]
[404512067,1770234412693,-334.271318,0.00039726,120]
[404512068,1770234412731,-334.271318,0.00039726,120]
[404512069,1770234412767,-334.271318,0.00039726,120]
[404512070,1770234412804,-334.271318,0.00039726,120]
[404512071,1770234412838,-334.271318,0.00039726,120]
[404512072,1770234412873,-334.271318,0.00039726,120]
[404512073,1770234412908,-334.271318,0.00039726,120]
[404512074,1770234412942,-151.0,0.00039726,120]
[404512075,1770234412976,-151.0,0.00039726,120]
[404512076,1770234413010,-151.0,0.00039726,120]
[404512077,1770234413047,-151.0,0.00039726,120]
[404512078,1770234413086,-169.78309,0.00039726,120]
[404512079,1770234413124,-151.0,0.00039726,120]
[404512080,1770234413160,-175.783809,0.00039726,120]
[404512081,1770234413202,-151.0,0.00039726,120]
[404512082,1770234413239,-151.0,0.00039726,120]
[404512083,1770234413276,-180.012598,0.00039726,120]
[404512084,1770234413313,-151.0,0.00039726,120]
[404512085,1770234413349,-151.0,0.00039726,120]
[404512086,1770234413386,-151.0,0.00039726,120]
[404512087,1770234413425,-155.117406,0.00039726,120]
[404512088,1770234413467,-159.670242,0.00039726,120]
[404512089,1770234413509,-151.0,0.00039726,120]
[404512090,1770234413550,-151.0,0.00039726,120]
[404512091,1770234413588,-151.0,0.00039726,120]
[404512092,1770234413628,-151.0,0.00039726,120]
[404512093,1770234413669,-151.0,0.00039726,120]
[404512094,1770234413710,-151.0,0.00039726,120]
[404512095,1770234413747,-151.0,0.00039726,120]
[404512096,1770234413783,-201.912713,0.00039726,120]
[404512097,1770234413820,-282.938453,0.00039726,120]
[404512098,1770234413857,-151.0,0.00039726,120]
[404512099,1770234413894,-151.0,0.00039726,120]
[404512100,1770234413933,-182.317062,0.00039726,120]
[404512101,1770234413973,-151.0,0.00039726,120]
[404512102,1770234414015,-151.0,0.00039726,120]
[404512103,1770234414053,-281.444576,0.00039726,120]
[404512104,1770234414094,-151.0,0.00039726,120]
[404512105,1770234414132,-151.0,0.00039726,120]
[404512106,1770234414168,-151.0,0.00039726,120]
[404512107,1770234414205,-151.0,0.00039726,120]
[404512108,1770234414241,-151.0,0.00039726,120]
[404512109,1770234414277,-151.0,0.00039726,120]
[404512110,1770234414314,-185.52676,0.00039726,120]
[404512111,1770234414660,-185.52676,0.00039726,120]
[404512112,1770234414694,-185.52676,0.00039726,120]
[404512113,1770234414723,-185.52676,0.00039726,120]
[404512114,1770234414755,-151.0,0.00039726,120]
[404512115,1770234414784,-151.0,0.00039726,120]
[404512116,1770234414812,-185.52676,0.00039726,120]
[404512117,1770234414840,-151.0,0.00039726,120]
[404512118,1770234414867,-185.52676,0.00039726,120]
[404512119,1770234414896,-151.0,0.00039726,120]
[404512120,1770234414924,-185.52676,0.00039726,120]
[404512121,1770234414953,-264.218956,0.00039726,120]
[404512122,1770234414987,-185.52676,0.00039726,120]
[404512123,1770234415016,-185.52676,0.00039726,120]
[404512124,1770234415045,-185.52676,0.00039726,120]
[404512125,1770234415073,-185.52676,0.00039726,120]
[404512126,1770234415103,-185.52676,0.00039726,120]
[404512127,1770234415131,-326.041101,0.00039726,90]
[404512128,1770234415158,-326.041101,0.00039726,90]
[404512129,1770234415185,-326.041101,0.00039726,90]
[404512130,1770234415218,-326.041101,0.00039726,90]
[404512131,1770234415246,-326.041101,0.00039726,90]
[404512132,1770234415273,-326.041101,0.00039726,90]
[404512133,1770234415300,-326.041101,0.00039726,90]
[404512134,1770234415327,-326.041101,0.00039726,90]
[404512135,1770234415354,-326.041101,0.00039726,90]
[404512136,1770234415381,-326.041101,0.00039726,90]
[404512137,1770234415408,-326.041101,0.00039726,90]
[404512138,1770234415434,-326.041101,0.00039726,90]
[404512139,1770234415464,-151.0,0.00039726,120]
[404512140,1770234415491,-232.990459,0.00039726,120]
[404512141,1770234415517,-176.708125,0.00039726,120]
[404512142,1770234415545,-166.192625,0.00039726,120]
[404512143,1770234415575,-151.0,0.00039726,120]
[404512144,1770234415603,-151.0,0.00039726,120]
[404512145,1770234415632,-169.820501,0.00039726,120]
[404512146,1770234415659,-157.473561,0.00039726,120]
[404512147,1770234415686,-151.0,0.00039726,30]
[404512148,1770234415715,-183.036719,0.00039726,30]
[404512149,1770234415742,-272.027237,0.00039726,120]
[404512150,1770234415769,-151.0,0.00039726,120]
[404512151,1770234415795,-188.417569,0.00039726,120]
[404512152,1770234415823,-173.204277,0.00039726,120]
[404512153,1770234415850,-179.90071,0.00039726,120]
[404512154,1770234415877,-179.90071,0.00039726,120]
[404512155,1770234415904,-179.90071,0.00039726,120]
[404512156,1770234415933,-179.90071,0.00039726,120]
[404512157,1770234415964,-179.90071,0.00039726,120]
[404512158,1770234415995,-179.90071,0.00039726,120]
[404512159,1770234416024,-179.90071,0.00039726,120]
[404512160,1770234416058,-179.90071,0.00039726,120]
[404512161,1770234416087,-179.90071,0.00039726,120]
[404512162,1770234416118,-179.90071,0.00039726,120]
[404512163,1770234416151,-179.90071,0.00039726,120]
[404512164,1770234416181,-179.90071,0.00039726,120]
[404512165,1770234416215,-151.0,0.00039726,15]
[404512166,1770234416243,-242.531409,0.00039726,15]
[404512167,1770234416272,-151.0,0.00039726,120]
[404512168,1770234416300,-151.0,0.00039726,120]
[404512169,1770234416331,-245.133526,0.00039726,120]
[404512170,1770234416357,-279.368161,0.00039726,120]
[404512171,1770234416384,-151.0,0.00039726,120]
[404512172,1770234416412,-151.0,0.00039726,120]
[404512173,1770234416444,-151.0,0.00039726,120]
[404512174,1770234416472,-151.0,0.00039726,120]
[404512175,1770234416498,-151.0,0.00039726,120]
[404512176,1770234416527,-151.0,0.00039726,120]
[404512177,1770234416554,-151.0,0.00039726,120]
[404512178,1770234416583,-151.0,0.00039726,120]
[404512179,1770234416611,-151.0,0.00039726,120]
[404512180,1770234416638,-151.0,0.00039726,120]
[404512181,1770234416665,-186.520579,0.00039726,120]
[404512182,1770234416694,-151.0,0.00039726,120]
[404512183,1770234416721,-151.0,0.00039726,120]
[404512184,1770234416748,-151.0,0.00039726,120]
[404512185,1770234416776,-198.061046,0.00039726,120]
[404512186,1770234416804,-151.0,0.00039726,120]
[404512187,1770234416831,-151.0,0.00039726,120]
[404512188,1770234416857,-151.0,0.00039726,120]
[404512189,1770234416884,-151.0,0.00039726,120]
[404512190,1770234416912,-151.0,0.00039726,120]
[404512191,1770234416939,-151.0,0.00039726,120]
[404512192,1770234416968,-158.770799,0.00039726,120]
[404512193,1770234416997,-151.0,0.00039726,120]
[404512194,1770234417026,-151.0,0.00039726,120]
[404512195,1770234417258,-151.0,0.00039726,120]
[404512196,1770234417288,-151.0,0.00039726,10]
[404512197,1770234417316,-151.0,0.00039726,10]
[404512198,1770234417344,-151.0,0.00039726,10]
[404512199,1770234417374,-151.0,0.00039726,120]
[404512200,1770234417403,-151.0,0.00039726,10]
[404512201,1770234417429,-196.389493,0.00039726,120]
[404512202,1770234417456,-151.0,0.00039726,120]
[404512203,1770234417482,-151.0,0.00039726,10]
[404512204,1770234417509,-151.0,0.00039726,120]
[404512205,1770234417535,-151.0,0.00039726,10]
[404512206,1770234417562,-151.0,0.00039726,120]
[404512207,1770234417591,-151.0,0.00039726,120]
[404512208,1770234417620,-182.249827,0.00039726,120]
[404512209,1770234417646,-190.224564,0.00039726,120]
[404512210,1770234417674,-151.0,0.00039726,10]